[Event "Titled Tuesday Blitz February 21 Late 2023"]
[White "Drnovsek, Gal"]
[Black "Rios Escobar, Adan"]
[WhiteFideId "14607077"]
[BlackFideId "3403645"]
[WhiteElo "2397"]
[BlackElo "2234"]
[Result "0-1"]
[Round "06"]
[TimeControl "180+2"]
[Date "2023.02.21"]
[WhiteClock "0:02:22"]
[BlackClock "0:01:58"]

1. e4 {[%clk 0:02:54]}  c5 {[%clk 0:03:00]} 2. c3 {[%clk 0:02:53]}  d5 {[%clk 0:03:00]} 3. exd5 {[%clk 0:02:54]}  Nf6 {[%clk 0:03:00]} 4. Bb5+ {[%clk 0:02:52]}  Nbd7 {[%clk 0:02:57]} 5. c4 {[%clk 0:02:50]}  a6 {[%clk 0:02:54]} 6. Bxd7+ {[%clk 0:02:45]}  Bxd7 {[%clk 0:02:55]} 7. d3 {[%clk 0:02:44]}  e6 {[%clk 0:02:52]} 8. dxe6 {[%clk 0:02:45]}  fxe6 {[%clk 0:02:48]} 9. Nf3 {[%clk 0:02:44]}  Bd6 {[%clk 0:02:48]} 10. O-O {[%clk 0:02:43]}  O-O {[%clk 0:02:48]} 11. Nc3 {[%clk 0:02:42]}  Bc6 {[%clk 0:02:45]} 12. Re1 {[%clk 0:02:41]}  Qc7 {[%clk 0:02:34]} 13. h3 {[%clk 0:02:40]}  Rae8 {[%clk 0:02:29]} 14. Bg5 {[%clk 0:02:32]}  Nh5 {[%clk 0:02:22]} 15. Nd2 {[%clk 0:02:28]}  Bh2+ {[%clk 0:02:11]} 16. Kh1 {[%clk 0:02:28]}  Rxf2 {[%clk 0:02:10]} 17. Nde4 {[%clk 0:02:27]}  Ng3+ {[%clk 0:02:04]} 18. Nxg3 {[%clk 0:02:22]}  Qxg3 {[%clk 0:01:58]} 0-1


[Site "https://www.chess.com"]

[Event "Titled Tuesday Blitz February 21 Late 2023"]
[White "Berezin, Viktor"]
[Black "Kovacs, Klara"]
[WhiteFideId "14107872"]
[BlackFideId "733210"]
[WhiteElo "2307"]
[BlackElo "2121"]
[Result "1-0"]
[Round "06"]
[TimeControl "180+2"]
[Date "2023.02.21"]
[WhiteClock "0:00:04"]
[BlackClock "0:00:02"]

1. d4 {[%clk 0:03:00]}  e6 {[%clk 0:03:00]} 2. Nf3 {[%clk 0:02:55]}  Nf6 {[%clk 0:02:57]} 3. c4 {[%clk 0:02:55]}  d5 {[%clk 0:02:46]} 4. g3 {[%clk 0:02:54]}  dxc4 {[%clk 0:02:37]} 5. Bg2 {[%clk 0:02:54]}  Bb4+ {[%clk 0:02:37]} 6. Bd2 {[%clk 0:02:52]}  c5 {[%clk 0:02:36]} 7. O-O {[%clk 0:02:51]}  O-O {[%clk 0:02:34]} 8. dxc5 {[%clk 0:02:47]}  Bxc5 {[%clk 0:02:30]} 9. Qc2 {[%clk 0:02:47]}  Nc6 {[%clk 0:02:27]} 10. Qxc4 {[%clk 0:02:44]}  Qd5 {[%clk 0:02:26]} 11. Qh4 {[%clk 0:02:24]}  Qh5 {[%clk 0:02:24]} 12. Qxh5 {[%clk 0:02:19]}  Nxh5 {[%clk 0:02:24]} 13. Nc3 {[%clk 0:02:19]}  e5 {[%clk 0:02:22]} 14. Rac1 {[%clk 0:02:14]}  Bb6 {[%clk 0:02:21]} 15. Nd5 {[%clk 0:02:04]}  Bd4 {[%clk 0:02:11]} 16. Bc3 {[%clk 0:01:56]}  Bxc3 {[%clk 0:02:08]} 17. Rxc3 {[%clk 0:01:55]}  Bg4 {[%clk 0:02:08]} 18. h3 {[%clk 0:01:50]}  Bxf3 {[%clk 0:02:03]} 19. Bxf3 {[%clk 0:01:48]}  g6 {[%clk 0:02:01]} 20. Bxh5 {[%clk 0:01:46]}  gxh5 {[%clk 0:02:02]} 21. Nf6+ {[%clk 0:01:46]}  Kh8 {[%clk 0:02:02]} 22. Nxh5 {[%clk 0:01:46]}  Nd4 {[%clk 0:02:02]} 23. Re1 {[%clk 0:01:37]}  Rac8 {[%clk 0:02:00]} 24. Kg2 {[%clk 0:01:31]}  Rxc3 {[%clk 0:01:55]} 25. bxc3 {[%clk 0:01:32]}  Ne6 {[%clk 0:01:54]} 26. Nf6 {[%clk 0:01:28]}  Kg7 {[%clk 0:01:52]} 27. Ne4 {[%clk 0:01:18]}  f5 {[%clk 0:01:49]} 28. Nd6 {[%clk 0:01:17]}  b6 {[%clk 0:01:47]} 29. e4 {[%clk 0:01:15]}  f4 {[%clk 0:01:46]} 30. Nf5+ {[%clk 0:01:15]}  Kf6 {[%clk 0:01:46]} 31. Rd1 {[%clk 0:01:08]}  Rc8 {[%clk 0:01:36]} 32. Rd6 {[%clk 0:00:46]}  Rxc3 {[%clk 0:01:32]} 33. g4 {[%clk 0:00:44]}  Kf7 {[%clk 0:01:19]} 34. Rd7+ {[%clk 0:00:42]}  Kf6 {[%clk 0:01:19]} 35. h4 {[%clk 0:00:31]}  Rc7 {[%clk 0:00:33]} 36. Rd6 {[%clk 0:00:30]}  Kf7 {[%clk 0:00:32]} 37. g5 {[%clk 0:00:22]}  Nc5 {[%clk 0:00:31]} 38. Rf6+ {[%clk 0:00:22]}  Ke8 {[%clk 0:00:28]} 39. f3 {[%clk 0:00:20]}  Rd7 {[%clk 0:00:27]} 40. h5 {[%clk 0:00:17]}  Rd2+ {[%clk 0:00:26]} 41. Kh3 {[%clk 0:00:17]}  Rf2 {[%clk 0:00:24]} 42. Nh4 {[%clk 0:00:15]}  Nd7 {[%clk 0:00:18]} 43. Rh6 {[%clk 0:00:11]}  Nf8 {[%clk 0:00:17]} 44. Kg4 {[%clk 0:00:11]}  Rxa2 {[%clk 0:00:13]} 45. g6 {[%clk 0:00:10]}  hxg6 {[%clk 0:00:12]} 46. hxg6 {[%clk 0:00:09]}  Ne6 {[%clk 0:00:12]} 47. Kf5 {[%clk 0:00:06]}  Kd7 {[%clk 0:00:10]} 48. Rh7+ {[%clk 0:00:05]}  Kd6 {[%clk 0:00:11]} 49. g7 {[%clk 0:00:04]}  Nxg7+ {[%clk 0:00:11]} 50. Rxg7 {[%clk 0:00:04]}  a5 {[%clk 0:00:10]} 51. Ng6 {[%clk 0:00:05]}  a4 {[%clk 0:00:06]} 52. Nxe5 {[%clk 0:00:05]}  a3 {[%clk 0:00:05]} 53. Ra7 {[%clk 0:00:04]}  Ra1 {[%clk 0:00:04]} 54. Rxa3 {[%clk 0:00:04]}  Rf1 {[%clk 0:00:02]} 55. Nc4+ {[%clk 0:00:04]}  Kc5 {[%clk 0:00:02]} 56. Nxb6 {[%clk 0:00:04]}  Kxb6 {[%clk 0:00:02]} 57. Kxf4 {[%clk 0:00:04]} 1-0


[Site "https://www.chess.com"]

[Event "Titled Tuesday Blitz February 21 Late 2023"]
[White "Martinez Reyes, Pedro Ramon"]
[Black "Bhavikatti, Neil"]
[WhiteFideId "3901807"]
[BlackFideId "30935024"]
[WhiteElo "2376"]
[BlackElo "2051"]
[Result "0-1"]
[Round "06"]
[TimeControl "180+2"]
[Date "2023.02.21"]
[WhiteClock "0:01:46"]
[BlackClock "0:00:37"]

1. e4 {[%clk 0:03:00]}  e5 {[%clk 0:03:00]} 2. d4 {[%clk 0:03:00]}  exd4 {[%clk 0:02:59]} 3. c3 {[%clk 0:03:00]}  Nf6 {[%clk 0:02:50]} 4. e5 {[%clk 0:02:59]}  Nd5 {[%clk 0:02:47]} 5. Qxd4 {[%clk 0:02:59]}  Nb6 {[%clk 0:02:47]} 6. Nf3 {[%clk 0:02:59]}  d5 {[%clk 0:02:46]} 7. exd6 {[%clk 0:02:58]}  Qxd6 {[%clk 0:02:46]} 8. Bf4 {[%clk 0:02:57]}  Qxd4 {[%clk 0:02:44]} 9. Nxd4 {[%clk 0:02:57]}  c6 {[%clk 0:02:42]} 10. Bd3 {[%clk 0:02:50]}  Nd5 {[%clk 0:02:41]} 11. Bg3 {[%clk 0:02:39]}  Be7 {[%clk 0:02:41]} 12. Nf5 {[%clk 0:02:39]}  Bxf5 {[%clk 0:02:31]} 13. Bxf5 {[%clk 0:02:40]}  O-O {[%clk 0:02:29]} 14. Nd2 {[%clk 0:02:37]}  g6 {[%clk 0:02:22]} 15. Bg4 {[%clk 0:02:33]}  Bg5 {[%clk 0:02:14]} 16. O-O-O {[%clk 0:02:25]}  Na6 {[%clk 0:02:10]} 17. Kc2 {[%clk 0:02:20]}  f5 {[%clk 0:02:07]} 18. Bf3 {[%clk 0:02:19]}  f4 {[%clk 0:02:01]} 19. h4 {[%clk 0:02:19]}  fxg3 {[%clk 0:01:56]} 20. hxg5 {[%clk 0:02:19]}  gxf2 {[%clk 0:01:55]} 21. Bxd5+ {[%clk 0:02:19]}  cxd5 {[%clk 0:01:56]} 22. Nf3 {[%clk 0:02:20]}  Rad8 {[%clk 0:01:46]} 23. Rd2 {[%clk 0:02:19]}  Nc5 {[%clk 0:01:46]} 24. Rxf2 {[%clk 0:02:19]}  Ne4 {[%clk 0:01:32]} 25. Re2 {[%clk 0:02:09]}  Ng3 {[%clk 0:01:32]} 26. Rhe1 {[%clk 0:02:10]}  Nxe2 {[%clk 0:01:32]} 27. Rxe2 {[%clk 0:02:11]}  Rfe8 {[%clk 0:01:29]} 28. Rd2 {[%clk 0:02:11]}  Re4 {[%clk 0:01:24]} 29. Nd4 {[%clk 0:02:04]}  a6 {[%clk 0:01:14]} 30. a4 {[%clk 0:02:04]}  Kf7 {[%clk 0:01:09]} 31. Rf2+ {[%clk 0:02:03]}  Ke7 {[%clk 0:01:09]} 32. Rf6 {[%clk 0:02:03]}  Rd6 {[%clk 0:01:05]} 33. Rf3 {[%clk 0:01:59]}  Re5 {[%clk 0:01:02]} 34. Rh3 {[%clk 0:01:59]}  Rxg5 {[%clk 0:00:57]} 35. Rxh7+ {[%clk 0:01:59]}  Kf6 {[%clk 0:00:57]} 36. Rxb7 {[%clk 0:01:59]}  Rxg2+ {[%clk 0:00:57]} 37. Kb3 {[%clk 0:02:00]}  g5 {[%clk 0:00:55]} 38. Rb8 {[%clk 0:01:59]}  g4 {[%clk 0:00:55]} 39. Rf8+ {[%clk 0:01:57]}  Kg5 {[%clk 0:00:53]} 40. Rf5+ {[%clk 0:01:56]}  Kg6 {[%clk 0:00:53]} 41. a5 {[%clk 0:01:53]}  Rd7 {[%clk 0:00:47]} 42. Ka3 {[%clk 0:01:51]}  Rb7 {[%clk 0:00:41]} 43. b4 {[%clk 0:01:50]}  Rc7 {[%clk 0:00:41]} 44. b5 {[%clk 0:01:46]}  Rxc3+ {[%clk 0:00:38]} 45. Kb4 {[%clk 0:01:46]}  Rc4+ {[%clk 0:00:37]} 46. Kb3 {[%clk 0:01:46]} 0-1


[Site "https://www.chess.com"]

[Event "Titled Tuesday Blitz February 21 Late 2023"]
[White "Jorajuria Mendoza, Algol"]
[Black "Karwowski, Kacper"]
[WhiteFideId "5128897"]
[BlackFideId "1126032"]
[WhiteElo "2069"]
[BlackElo "2164"]
[Result "1-0"]
[Round "06"]
[TimeControl "180+2"]
[Date "2023.02.21"]
[WhiteClock "0:00:25"]
[BlackClock "0:00:03"]

1. e4 {[%clk 0:03:00]}  d6 {[%clk 0:02:57]} 2. d4 {[%clk 0:02:57]}  Nf6 {[%clk 0:02:56]} 3. Nc3 {[%clk 0:02:57]}  g6 {[%clk 0:02:55]} 4. Be3 {[%clk 0:02:51]}  c6 {[%clk 0:02:54]} 5. f3 {[%clk 0:02:35]}  b5 {[%clk 0:02:54]} 6. Qd2 {[%clk 0:02:32]}  Qa5 {[%clk 0:02:49]} 7. h4 {[%clk 0:02:22]}  Nbd7 {[%clk 0:02:37]} 8. g4 {[%clk 0:02:18]}  Bb7 {[%clk 0:02:09]} 9. h5 {[%clk 0:02:17]}  O-O-O {[%clk 0:01:26]} 10. h6 {[%clk 0:02:09]}  e5 {[%clk 0:01:24]} 11. g5 {[%clk 0:01:47]}  Nh5 {[%clk 0:01:22]} 12. Nge2 {[%clk 0:01:44]}  exd4 {[%clk 0:01:10]} 13. Qxd4 {[%clk 0:01:39]}  Ne5 {[%clk 0:01:05]} 14. Kf2 {[%clk 0:01:28]}  Be7 {[%clk 0:00:55]} 15. Qxa7 {[%clk 0:01:11]}  Qxa7 {[%clk 0:00:53]} 16. Bxa7 {[%clk 0:01:12]}  Bxg5 {[%clk 0:00:36]} 17. Bb6 {[%clk 0:00:54]}  Rd7 {[%clk 0:00:35]} 18. Bh3 {[%clk 0:00:54]}  Bxh6 {[%clk 0:00:14]} 19. Bxd7+ {[%clk 0:00:53]}  Kxd7 {[%clk 0:00:15]} 20. Bd4 {[%clk 0:00:52]}  Re8 {[%clk 0:00:11]} 21. Rad1 {[%clk 0:00:47]}  Bg7 {[%clk 0:00:09]} 22. f4 {[%clk 0:00:43]}  Ng4+ {[%clk 0:00:09]} 23. Kf3 {[%clk 0:00:43]}  Bxd4 {[%clk 0:00:10]} 24. Rxd4 {[%clk 0:00:42]}  f5 {[%clk 0:00:10]} 25. Rhd1 {[%clk 0:00:40]}  Re6 {[%clk 0:00:07]} 26. e5 {[%clk 0:00:32]}  c5+ {[%clk 0:00:07]} 27. Rd5 {[%clk 0:00:30]}  Bxd5+ {[%clk 0:00:07]} 28. Rxd5 {[%clk 0:00:31]}  Kc6 {[%clk 0:00:06]} 29. Rxd6+ {[%clk 0:00:29]}  Rxd6 {[%clk 0:00:06]} 30. exd6 {[%clk 0:00:30]}  b4 {[%clk 0:00:07]} 31. Nb5 {[%clk 0:00:31]}  Kxb5 {[%clk 0:00:07]} 32. d7 {[%clk 0:00:31]}  Nh2+ {[%clk 0:00:02]} 33. Kg2 {[%clk 0:00:30]}  Nxf4+ {[%clk 0:00:03]} 34. Nxf4 {[%clk 0:00:29]}  Ng4 {[%clk 0:00:03]} 35. d8=Q {[%clk 0:00:25]} 1-0


[Site "https://www.chess.com"]

[Event "Titled Tuesday Blitz February 21 Late 2023"]
[White "Mazurkiewicz, Michal"]
[Black "Lucassen, Mickey"]
[WhiteFideId "1124943"]
[BlackFideId "12919110"]
[WhiteElo "2145"]
[BlackElo "2023"]
[Result "1-0"]
[Round "06"]
[TimeControl "180+2"]
[Date "2023.02.21"]
[WhiteClock "0:00:38"]
[BlackClock "0:00:05"]

1. e4 {[%clk 0:02:59]}  c5 {[%clk 0:02:59]} 2. Nf3 {[%clk 0:02:59]}  d6 {[%clk 0:02:59]} 3. g3 {[%clk 0:02:54]}  Nf6 {[%clk 0:02:57]} 4. d3 {[%clk 0:02:54]}  g6 {[%clk 0:02:57]} 5. Bg2 {[%clk 0:02:37]}  Bg7 {[%clk 0:02:56]} 6. O-O {[%clk 0:02:37]}  O-O {[%clk 0:02:56]} 7. Re1 {[%clk 0:02:34]}  Nc6 {[%clk 0:02:55]} 8. e5 {[%clk 0:02:34]}  dxe5 {[%clk 0:02:44]} 9. Nxe5 {[%clk 0:02:35]}  Nxe5 {[%clk 0:02:44]} 10. Rxe5 {[%clk 0:02:35]}  Nd7 {[%clk 0:02:45]} 11. Re2 {[%clk 0:02:35]}  e6 {[%clk 0:02:43]} 12. Nc3 {[%clk 0:02:30]}  Qc7 {[%clk 0:02:34]} 13. Bf4 {[%clk 0:02:26]}  Qb6 {[%clk 0:02:12]} 14. Ne4 {[%clk 0:02:03]}  Qxb2 {[%clk 0:02:02]} 15. Rb1 {[%clk 0:02:02]}  Qxa2 {[%clk 0:01:59]} 16. Nd6 {[%clk 0:01:51]}  e5 {[%clk 0:01:45]} 17. Be3 {[%clk 0:01:44]}  Qe6 {[%clk 0:01:24]} 18. Nxb7 {[%clk 0:01:40]}  Bxb7 {[%clk 0:01:13]} 19. Rxb7 {[%clk 0:01:38]}  a5 {[%clk 0:00:44]} 20. c4 {[%clk 0:01:27]}  a4 {[%clk 0:00:37]} 21. Ra2 {[%clk 0:01:22]}  a3 {[%clk 0:00:34]} 22. Qb3 {[%clk 0:01:21]}  Rfb8 {[%clk 0:00:28]} 23. Rxa3 {[%clk 0:01:21]}  Rxa3 {[%clk 0:00:11]} 24. Rxb8+ {[%clk 0:01:20]}  Nxb8 {[%clk 0:00:12]} 25. Qxa3 {[%clk 0:01:17]}  Nd7 {[%clk 0:00:11]} 26. Qa8+ {[%clk 0:01:09]}  Bf8 {[%clk 0:00:11]} 27. Bh6 {[%clk 0:01:05]}  Qd6 {[%clk 0:00:10]} 28. Bd5 {[%clk 0:00:59]}  Nb6 {[%clk 0:00:09]} 29. Qe8 {[%clk 0:00:47]}  Nxd5 {[%clk 0:00:08]} 30. cxd5 {[%clk 0:00:46]}  Qe7 {[%clk 0:00:05]} 31. Qc8 {[%clk 0:00:38]} 1-0


[Site "https://www.chess.com"]

[Event "Titled Tuesday Blitz February 21 Late 2023"]
[White "Romero Ruscalleda, Josep"]
[Black "Kleiman, Jake"]
[WhiteFideId "2231859"]
[BlackFideId "2020041"]
[WhiteElo "2160"]
[BlackElo "2399"]
[Result "0-1"]
[Round "06"]
[TimeControl "180+2"]
[Date "2023.02.21"]
[WhiteClock "0:00:47"]
[BlackClock "0:01:00"]

1. e4 {[%clk 0:02:58]}  Nf6 {[%clk 0:02:53]} 2. e5 {[%clk 0:02:58]}  Nd5 {[%clk 0:02:53]} 3. Nf3 {[%clk 0:02:59]}  d6 {[%clk 0:02:53]} 4. d4 {[%clk 0:02:58]}  dxe5 {[%clk 0:02:53]} 5. Nxe5 {[%clk 0:02:57]}  c6 {[%clk 0:02:54]} 6. Be2 {[%clk 0:02:56]}  g6 {[%clk 0:02:54]} 7. O-O {[%clk 0:02:55]}  Bg7 {[%clk 0:02:55]} 8. h3 {[%clk 0:02:52]}  O-O {[%clk 0:02:55]} 9. c3 {[%clk 0:02:50]}  Nd7 {[%clk 0:02:54]} 10. Nc4 {[%clk 0:02:44]}  e5 {[%clk 0:02:52]} 11. dxe5 {[%clk 0:02:41]}  Nxe5 {[%clk 0:02:53]} 12. Nxe5 {[%clk 0:02:40]}  Bxe5 {[%clk 0:02:50]} 13. Nd2 {[%clk 0:02:40]}  Nf4 {[%clk 0:02:46]} 14. Bf3 {[%clk 0:02:37]}  Qg5 {[%clk 0:02:33]} 15. Kh1 {[%clk 0:02:02]}  Qh4 {[%clk 0:02:23]} 16. Ne4 {[%clk 0:01:33]}  Nxh3 {[%clk 0:02:12]} 17. g3 {[%clk 0:01:29]}  Nxf2+ {[%clk 0:01:34]} 18. Kg2 {[%clk 0:01:29]}  Bxg3 {[%clk 0:01:11]} 19. Nxg3 {[%clk 0:01:19]}  Nxd1 {[%clk 0:01:10]} 20. Rxd1 {[%clk 0:01:19]}  Qh3+ {[%clk 0:01:09]} 21. Kf2 {[%clk 0:01:18]}  Qh2+ {[%clk 0:01:09]} 22. Bg2 {[%clk 0:01:19]}  Bh3 {[%clk 0:01:09]} 23. Rg1 {[%clk 0:01:19]}  Bxg2 {[%clk 0:01:07]} 24. Rxg2 {[%clk 0:01:16]}  Qh4 {[%clk 0:01:07]} 25. Be3 {[%clk 0:01:13]}  Rfe8 {[%clk 0:01:05]} 26. Re1 {[%clk 0:01:07]}  Re5 {[%clk 0:01:02]} 27. Bd4 {[%clk 0:00:46]}  Rxe1 {[%clk 0:00:59]} 28. Kxe1 {[%clk 0:00:46]}  Re8+ {[%clk 0:00:59]} 29. Kf2 {[%clk 0:00:46]}  Qf4+ {[%clk 0:01:00]} 30. Kg1 {[%clk 0:00:46]}  Re1+ {[%clk 0:01:00]} 31. Kh2 {[%clk 0:00:47]}  Qh4# {[%clk 0:01:00]} 0-1


[Site "https://www.chess.com"]

[Event "Titled Tuesday Blitz February 21 Late 2023"]
[White "Buchenau, Frank"]
[Black "Stachanczyk, Jacek"]
[WhiteFideId "4604350"]
[BlackFideId "1116657"]
[WhiteElo "2222"]
[BlackElo "2147"]
[Result "0-1"]
[Round "06"]
[TimeControl "180+2"]
[Date "2023.02.21"]
[WhiteClock "0:00:42"]
[BlackClock "0:01:01"]

1. e4 {[%clk 0:03:00]}  c5 {[%clk 0:02:58]} 2. Nf3 {[%clk 0:03:01]}  d6 {[%clk 0:02:59]} 3. Bb5+ {[%clk 0:03:00]}  Bd7 {[%clk 0:02:58]} 4. Bxd7+ {[%clk 0:03:00]}  Qxd7 {[%clk 0:02:58]} 5. c4 {[%clk 0:03:00]}  Nf6 {[%clk 0:02:58]} 6. Nc3 {[%clk 0:03:00]}  g6 {[%clk 0:02:58]} 7. d4 {[%clk 0:03:00]}  cxd4 {[%clk 0:02:59]} 8. Nxd4 {[%clk 0:03:00]}  Bg7 {[%clk 0:03:00]} 9. f3 {[%clk 0:03:00]}  O-O {[%clk 0:03:00]} 10. Be3 {[%clk 0:03:01]}  Qc7 {[%clk 0:02:50]} 11. b3 {[%clk 0:02:57]}  a6 {[%clk 0:02:49]} 12. Qd3 {[%clk 0:02:52]}  Qa5 {[%clk 0:02:38]} 13. O-O {[%clk 0:02:48]}  Nc6 {[%clk 0:02:35]} 14. Nxc6 {[%clk 0:02:44]}  bxc6 {[%clk 0:02:35]} 15. c5 {[%clk 0:02:34]}  Nd7 {[%clk 0:02:29]} 16. Rac1 {[%clk 0:02:23]}  Nxc5 {[%clk 0:02:27]} 17. Qc4 {[%clk 0:02:14]}  Ne6 {[%clk 0:02:08]} 18. b4 {[%clk 0:01:55]}  Qa3 {[%clk 0:01:51]} 19. f4 {[%clk 0:01:27]}  Rab8 {[%clk 0:01:44]} 20. f5 {[%clk 0:01:22]}  Rxb4 {[%clk 0:01:43]} 21. Qxc6 {[%clk 0:01:18]}  Nd4 {[%clk 0:01:22]} 22. Qc7 {[%clk 0:01:13]}  Nb5 {[%clk 0:01:03]} 23. Nxb5 {[%clk 0:00:42]}  Qxe3+ {[%clk 0:01:01]} 0-1


[Site "https://www.chess.com"]

[Event "Titled Tuesday Blitz February 21 Late 2023"]
[White "Kochetov, Andrey"]
[Black "Zampronha, Wladimir Camilo"]
[WhiteFideId "24130532"]
[BlackFideId "2103087"]
[WhiteElo "2165"]
[BlackElo "2176"]
[Result "0-1"]
[Round "06"]
[TimeControl "180+2"]
[Date "2023.02.21"]
[WhiteClock "0:00:03"]
[BlackClock "0:00:23"]

1. e4 {[%clk 0:03:00]}  c5 {[%clk 0:02:57]} 2. Nf3 {[%clk 0:03:00]}  e6 {[%clk 0:02:57]} 3. d4 {[%clk 0:02:58]}  cxd4 {[%clk 0:02:58]} 4. Nxd4 {[%clk 0:02:59]}  Nc6 {[%clk 0:02:59]} 5. Nc3 {[%clk 0:02:59]}  Qc7 {[%clk 0:02:59]} 6. Be3 {[%clk 0:02:42]}  a6 {[%clk 0:02:59]} 7. f4 {[%clk 0:02:42]}  Bb4 {[%clk 0:02:51]} 8. Qd2 {[%clk 0:02:37]}  Nf6 {[%clk 0:02:50]} 9. Bd3 {[%clk 0:02:37]}  d5 {[%clk 0:02:37]} 10. e5 {[%clk 0:02:29]}  Ng4 {[%clk 0:02:31]} 11. Bg1 {[%clk 0:02:18]}  Nxd4 {[%clk 0:02:32]} 12. Bxd4 {[%clk 0:02:16]}  Bc5 {[%clk 0:02:32]} 13. Ne2 {[%clk 0:02:05]}  Bxd4 {[%clk 0:02:29]} 14. Nxd4 {[%clk 0:02:06]}  Qb6 {[%clk 0:02:30]} 15. c3 {[%clk 0:02:06]}  Bd7 {[%clk 0:02:25]} 16. O-O {[%clk 0:01:57]}  O-O {[%clk 0:02:22]} 17. Kh1 {[%clk 0:01:51]}  f5 {[%clk 0:02:18]} 18. exf6 {[%clk 0:01:45]}  Nxf6 {[%clk 0:02:18]} 19. Rae1 {[%clk 0:01:43]}  Rae8 {[%clk 0:02:19]} 20. Re3 {[%clk 0:01:19]}  Qd6 {[%clk 0:02:08]} 21. g3 {[%clk 0:00:33]}  e5 {[%clk 0:02:01]} 22. fxe5 {[%clk 0:00:27]}  Rxe5 {[%clk 0:02:02]} 23. Rxe5 {[%clk 0:00:25]}  Qxe5 {[%clk 0:02:02]} 24. Re1 {[%clk 0:00:26]}  Qh5 {[%clk 0:01:56]} 25. Be2 {[%clk 0:00:25]}  Bg4 {[%clk 0:01:53]} 26. Bxg4 {[%clk 0:00:25]}  Nxg4 {[%clk 0:01:53]} 27. h4 {[%clk 0:00:03]}  Nf2+ {[%clk 0:01:43]} 28. Kg2 {[%clk 0:00:03]}  Ne4 {[%clk 0:01:44]} 29. Qe3 {[%clk 0:00:03]}  Qg4 {[%clk 0:01:18]} 30. Ne2 {[%clk 0:00:03]}  Rf2+ {[%clk 0:01:11]} 31. Qxf2 {[%clk 0:00:02]}  Nxf2 {[%clk 0:01:12]} 32. Kxf2 {[%clk 0:00:03]}  Qc4 {[%clk 0:01:08]} 33. Nf4 {[%clk 0:00:03]}  Qxa2 {[%clk 0:01:05]} 34. Re2 {[%clk 0:00:02]}  h6 {[%clk 0:01:03]} 35. Rd2 {[%clk 0:00:03]}  a5 {[%clk 0:00:52]} 36. Nxd5 {[%clk 0:00:03]}  a4 {[%clk 0:00:53]} 37. Ke2 {[%clk 0:00:03]}  a3 {[%clk 0:00:52]} 38. bxa3 {[%clk 0:00:04]}  Qxa3 {[%clk 0:00:52]} 39. Kd3 {[%clk 0:00:04]}  Qd6 {[%clk 0:00:50]} 40. Kd4 {[%clk 0:00:04]}  Qxg3 {[%clk 0:00:49]} 41. Rc2 {[%clk 0:00:04]}  Qxh4+ {[%clk 0:00:47]} 42. Kc5 {[%clk 0:00:04]}  Qd8 {[%clk 0:00:45]} 43. c4 {[%clk 0:00:04]}  h5 {[%clk 0:00:44]} 44. Rh2 {[%clk 0:00:03]}  h4 {[%clk 0:00:40]} 45. Kd4 {[%clk 0:00:03]}  g5 {[%clk 0:00:39]} 46. Ke4 {[%clk 0:00:04]}  g4 {[%clk 0:00:37]} 47. Ke3 {[%clk 0:00:03]}  h3 {[%clk 0:00:26]} 48. Kf2 {[%clk 0:00:03]}  Qd6 {[%clk 0:00:24]} 49. Kg1 {[%clk 0:00:02]}  Qg3+ {[%clk 0:00:23]} 50. Kh1 {[%clk 0:00:03]}  Qe1# {[%clk 0:00:23]} 0-1


[Site "https://www.chess.com"]